[Event "Late-Titled-Tuesday-Blitz-October-10-2023"]
[Site "Chess.com"]
[Date "2023.10.10"]
[Round "2"]
[White "Andrej2004"]
[Black "Sulthankan"]
[Result "0-1"]
[WhiteElo "2579"]
[BlackElo "2358"]
[TimeControl "180+1"]
[EndTime "14:18:06 PDT"]
[Termination "Sulthankan won by resignation"]

1. Nf3 {[%clk 0:03:00.9]} 1... Nf6 {[%clk 0:02:59.8]} 2. c4 {[%clk 0:03:00.2]}
2... g6 {[%clk 0:02:57.6]} 3. b3 {[%clk 0:03:00.5]} 3... Bg7 {[%clk 0:02:57.8]}
4. Bb2 {[%clk 0:03:01.2]} 4... O-O {[%clk 0:02:58]} 5. g3 {[%clk 0:03:01.8]}
5... c6 {[%clk 0:02:57.1]} 6. Bg2 {[%clk 0:03:02.4]} 6... d5 {[%clk 0:02:57.8]}
7. O-O {[%clk 0:03:01.1]} 7... a5 {[%clk 0:02:57.8]} 8. d3 {[%clk 0:03:00.2]}
8... Na6 {[%clk 0:02:47.4]} 9. Nc3 {[%clk 0:02:58.1]} 9... Re8 {[%clk
0:02:39.9]} 10. Qd2 {[%clk 0:02:52.5]} 10... e5 {[%clk 0:02:26.9]} 11. cxd5
{[%clk 0:02:47.8]} 11... cxd5 {[%clk 0:02:27.8]} 12. Nb5 {[%clk 0:02:47.4]}
12... e4 {[%clk 0:02:22.8]} 13. Nfd4 {[%clk 0:02:40.3]} 13... Nb4 {[%clk
0:02:13.9]} 14. a3 {[%clk 0:02:37.1]} 14... Nc6 {[%clk 0:02:13.7]} 15. Nxc6
{[%clk 0:02:23.5]} 15... bxc6 {[%clk 0:02:13.6]} 16. Nd4 {[%clk 0:02:23.2]}
16... Qd6 {[%clk 0:02:06.7]} 17. b4 {[%clk 0:02:18.5]} 17... exd3 {[%clk
0:01:53.2]} 18. exd3 {[%clk 0:02:16.3]} 18... Rb8 {[%clk 0:01:43.3]} 19. Rfc1
{[%clk 0:01:45.5]} 19... Bd7 {[%clk 0:01:43.4]} 20. bxa5 {[%clk 0:01:38.7]}
20... c5 {[%clk 0:01:40.4]} 21. Nf3 {[%clk 0:01:34.1]} 21... Ne4 {[%clk
0:01:17.7]} 22. dxe4 {[%clk 0:01:34.2]} 22... Bxb2 {[%clk 0:01:08.7]} 23. Qxd5
{[%clk 0:01:34.1]} 23... Qxd5 {[%clk 0:01:04.6]} 24. exd5 {[%clk 0:01:34.6]}
24... Bxa1 {[%clk 0:01:02.4]} 25. Rxa1 {[%clk 0:01:35.5]} 25... Ra8 {[%clk
0:01:01.7]} 26. Nd2 {[%clk 0:01:35.5]} 26... Rxa5 {[%clk 0:01:00]} 27. Nc4
{[%clk 0:01:35.5]} 27... Ra6 {[%clk 0:00:48.9]} 28. Rb1 {[%clk 0:01:31.6]} 28...
Bf5 {[%clk 0:00:43.3]} 29. Rc1 {[%clk 0:01:25.9]} 29... Bd3 {[%clk 0:00:28.6]}
30. h4 {[%clk 0:01:20.7]} 30... Kf8 {[%clk 0:00:23.6]} 31. Ne3 {[%clk
0:01:18.1]} 31... c4 {[%clk 0:00:19.5]} 32. Nxc4 {[%clk 0:01:10.7]} 32... Rc8
{[%clk 0:00:19.7]} 33. Rc3 {[%clk 0:00:59.2]} 33... Bxc4 {[%clk 0:00:19.5]} 34.
Bf1 {[%clk 0:00:59.3]} 34... Ra4 {[%clk 0:00:18.1]} 35. d6 {[%clk 0:00:51.5]}
35... Ke8 {[%clk 0:00:17.5]} 36. Bh3 {[%clk 0:00:48.8]} 36... f5 {[%clk
0:00:17.2]} 37. h5 {[%clk 0:00:48.2]} 37... Ba6 {[%clk 0:00:17.3]} 38. Re3+
{[%clk 0:00:47.3]} 38... Kd7 {[%clk 0:00:17.3]} 39. Re7+ {[%clk 0:00:46.8]}
39... Kxd6 {[%clk 0:00:17.9]} 40. Rxh7 {[%clk 0:00:47.7]} 40... Rc1+ {[%clk
0:00:17.9]} 41. Kh2 {[%clk 0:00:47.5]} 41... gxh5 {[%clk 0:00:17.4]} 42. Rxh5
{[%clk 0:00:44.7]} 42... Bb7 {[%clk 0:00:16.2]} 43. Bg2 {[%clk 0:00:44.1]} 43...
Bxg2 {[%clk 0:00:15.9]} 44. Kxg2 {[%clk 0:00:45]} 44... Ke5 {[%clk 0:00:16.6]}
45. Rh8 {[%clk 0:00:43.1]} 45... Rxa3 {[%clk 0:00:16.5]} 46. Re8+ {[%clk
0:00:43.2]} 46... Kf6 {[%clk 0:00:16.5]} 47. Rf8+ {[%clk 0:00:43.7]} 47... Kg6
{[%clk 0:00:17.1]} 48. Rg8+ {[%clk 0:00:44.2]} 48... Kf7 {[%clk 0:00:17.7]} 49.
Rg5 {[%clk 0:00:44]} 49... Kf6 {[%clk 0:00:18.4]} 50. Rh5 {[%clk 0:00:44.1]}
50... Rc2 {[%clk 0:00:17.8]} 51. Rh6+ {[%clk 0:00:44.6]} 51... Ke5 {[%clk
0:00:18.4]} 52. Rh8 {[%clk 0:00:41.3]} 52... Raa2 {[%clk 0:00:18]} 53. Re8+
{[%clk 0:00:41.2]} 53... Kf6 {[%clk 0:00:18.6]} 54. Rf8+ {[%clk 0:00:41.6]}
54... Kg6 {[%clk 0:00:19.2]} 55. Rg8+ {[%clk 0:00:42]} 55... Kf7 {[%clk
0:00:19.8]} 56. Rb8 {[%clk 0:00:40.4]} 56... Rxf2+ {[%clk 0:00:20.1]} 57. Kg1
{[%clk 0:00:41.3]} 57... Rg2+ {[%clk 0:00:20.3]} 58. Kf1 {[%clk 0:00:41.6]}
58... Rxg3 {[%clk 0:00:20.5]} 59. Rb6 {[%clk 0:00:41.4]} 59... Rc3 {[%clk
0:00:19.7]} 60. Rb1 {[%clk 0:00:39.7]} 60... Kf6 {[%clk 0:00:20.1]} 61. Kg1
{[%clk 0:00:39.7]} 61... Kg5 {[%clk 0:00:20.4]} 62. Kh1 {[%clk 0:00:40.2]} 62...
Kg4 {[%clk 0:00:20.9]} 63. Rg1+ {[%clk 0:00:39.9]} 63... Rg3 {[%clk 0:00:20]}
64. Rg2 {[%clk 0:00:40.5]} 64... Ra1+ {[%clk 0:00:19.2]} 65. Kh2 {[%clk
0:00:41]} 65... Rxg2+ {[%clk 0:00:19.3]} 66. Kxg2 {[%clk 0:00:41.9]} 66... f4
{[%clk 0:00:20]} 0-1

[Event "Late-Titled-Tuesday-Blitz-October-10-2023"]
[Site "Chess.com"]
[Date "2023.10.10"]
[Round "2"]
[White "FairChess_on_YouTube"]
[Black "jguerramzllo"]
[Result "1-0"]
[WhiteElo "3090"]
[BlackElo "2650"]
[TimeControl "180+1"]
[EndTime "14:18:08 PDT"]
[Termination "FairChess_on_YouTube won by checkmate"]

1. d4 {[%clk 0:03:00.9]} 1... d5 {[%clk 0:02:57.8]} 2. c4 {[%clk 0:03:01.3]}
2... e6 {[%clk 0:02:56.7]} 3. Nc3 {[%clk 0:03:00.6]} 3... Nf6 {[%clk 0:02:55.7]}
4. Nf3 {[%clk 0:02:57.4]} 4... c5 {[%clk 0:02:54.7]} 5. cxd5 {[%clk 0:02:56.4]}
5... cxd4 {[%clk 0:02:54.2]} 6. Qa4+ {[%clk 0:02:53.5]} 6... Bd7 {[%clk
0:02:49.8]} 7. Qxd4 {[%clk 0:02:53.5]} 7... exd5 {[%clk 0:02:50.4]} 8. Bg5
{[%clk 0:02:53.6]} 8... Be7 {[%clk 0:02:27.7]} 9. e3 {[%clk 0:02:53.3]} 9... Nc6
{[%clk 0:02:25.4]} 10. Qd3 {[%clk 0:02:53.1]} 10... O-O {[%clk 0:02:17.3]} 11.
Be2 {[%clk 0:02:53.1]} 11... Be6 {[%clk 0:02:13.7]} 12. O-O {[%clk 0:02:52.7]}
12... Qb6 {[%clk 0:02:10.7]} 13. Nb5 {[%clk 0:02:46.7]} 13... Rac8 {[%clk
0:01:33.1]} 14. Nbd4 {[%clk 0:02:37.4]} 14... Rfd8 {[%clk 0:01:16.3]} 15. h3
{[%clk 0:02:34.7]} 15... Nxd4 {[%clk 0:01:04]} 16. Nxd4 {[%clk 0:02:34.1]} 16...
Rd7 {[%clk 0:00:55.6]} 17. Qb5 {[%clk 0:02:25.9]} 17... Qxb5 {[%clk 0:00:51]}
18. Bxb5 {[%clk 0:02:26.8]} 18... Rdc7 {[%clk 0:00:50.9]} 19. Bd3 {[%clk
0:02:23.1]} 19... Ne4 {[%clk 0:00:32.1]} 20. Bxe7 {[%clk 0:02:21.6]} 20... Rxe7
{[%clk 0:00:31.8]} 21. Rac1 {[%clk 0:02:18.5]} 21... Rec7 {[%clk 0:00:22.2]} 22.
Rxc7 {[%clk 0:02:18.3]} 22... Rxc7 {[%clk 0:00:22.6]} 23. Rd1 {[%clk 0:02:15.9]}
23... Kf8 {[%clk 0:00:20.2]} 24. Nb5 {[%clk 0:02:10.5]} 24... Rc5 {[%clk
0:00:19.8]} 25. f3 {[%clk 0:01:59.2]} 25... Nf6 {[%clk 0:00:17.8]} 26. b4 {[%clk
0:01:56.9]} 26... Rc8 {[%clk 0:00:17.7]} 27. Kf2 {[%clk 0:01:55.6]} 27... a6
{[%clk 0:00:17.4]} 28. Nd4 {[%clk 0:01:55.1]} 28... Ke7 {[%clk 0:00:17.7]} 29.
Ke2 {[%clk 0:01:53.7]} 29... Rc7 {[%clk 0:00:17.2]} 30. g4 {[%clk 0:01:52.4]}
30... h6 {[%clk 0:00:17]} 31. a4 {[%clk 0:01:50.9]} 31... Bd7 {[%clk 0:00:16.9]}
32. b5 {[%clk 0:01:50.8]} 32... axb5 {[%clk 0:00:13.4]} 33. axb5 {[%clk
0:01:51.7]} 33... Ne8 {[%clk 0:00:12.3]} 34. Kd2 {[%clk 0:01:44.1]} 34... Nd6
{[%clk 0:00:11.8]} 35. Ra1 {[%clk 0:01:44.7]} 35... Rc8 {[%clk 0:00:07.5]} 36.
Ra7 {[%clk 0:01:43.7]} 36... g6 {[%clk 0:00:06.6]} 37. h4 {[%clk 0:01:43.2]}
37... Kd8 {[%clk 0:00:03.7]} 38. b6 {[%clk 0:01:39.1]} 38... Rb8 {[%clk
0:00:01.9]} 39. Ra5 {[%clk 0:01:35.7]} 39... Bc6 {[%clk 0:00:02.2]} 40. Kc3
{[%clk 0:01:35.6]} 40... Nc8 {[%clk 0:00:02.1]} 41. Bb5 {[%clk 0:01:31.1]} 41...
Nxb6 {[%clk 0:00:01.7]} 42. Bxc6 {[%clk 0:01:31.4]} 42... Rc8 {[%clk 0:00:02.3]}
43. Ra7 {[%clk 0:01:10.6]} 43... bxc6 {[%clk 0:00:02.7]} 44. Rxf7 {[%clk
0:01:11.5]} 44... c5 {[%clk 0:00:03.4]} 45. Nb5 {[%clk 0:01:07.9]} 45... Rc6
{[%clk 0:00:03.6]} 46. Rh7 {[%clk 0:01:06.2]} 46... Re6 {[%clk 0:00:03.4]} 47.
Kd3 {[%clk 0:01:02.4]} 47... Nc4 {[%clk 0:00:03.7]} 48. e4 {[%clk 0:01:01.4]}
48... dxe4+ {[%clk 0:00:04.1]} 49. Kxc4 {[%clk 0:00:59.3]} 49... e3 {[%clk
0:00:04.5]} 50. Nc3 {[%clk 0:00:55.9]} 50... e2 {[%clk 0:00:04.4]} 51. Nxe2
{[%clk 0:00:56.5]} 51... Rxe2 {[%clk 0:00:05.1]} 52. Rxh6 {[%clk 0:00:56.9]}
52... Rf2 {[%clk 0:00:05.1]} 53. Rxg6 {[%clk 0:00:56.2]} 53... Rxf3 {[%clk
0:00:05.8]} 54. Kxc5 {[%clk 0:00:53.2]} 54... Ke7 {[%clk 0:00:04.3]} 55. h5
{[%clk 0:00:53.5]} 55... Kf7 {[%clk 0:00:04.3]} 56. Kd5 {[%clk 0:00:54.1]} 56...
Rf1 {[%clk 0:00:04]} 57. Ke5 {[%clk 0:00:53.9]} 57... Rf2 {[%clk 0:00:04.1]} 58.
Rg5 {[%clk 0:00:53.7]} 58... Re2+ {[%clk 0:00:01.5]} 59. Kf4 {[%clk 0:00:54.1]}
59... Rf2+ {[%clk 0:00:02.1]} 60. Kg3 {[%clk 0:00:54.4]} 60... Ra2 {[%clk
0:00:02.3]} 61. Rf5+ {[%clk 0:00:54.2]} 61... Kg7 {[%clk 0:00:02.7]} 62. Kh4
{[%clk 0:00:54.8]} 62... Ra4 {[%clk 0:00:02.3]} 63. Kg5 {[%clk 0:00:55]} 63...
Ra7 {[%clk 0:00:02.7]} 64. h6+ {[%clk 0:00:54.8]} 64... Kh7 {[%clk 0:00:03]} 65.
Kh5 {[%clk 0:00:55.4]} 65... Rb7 {[%clk 0:00:02.9]} 66. g5 {[%clk 0:00:55.4]}
66... Ra7 {[%clk 0:00:02.9]} 67. Rb5 {[%clk 0:00:54.3]} 67... Ra8 {[%clk
0:00:01.9]} 68. g6+ {[%clk 0:00:53.8]} 68... Kg8 {[%clk 0:00:02.6]} 69. h7+
{[%clk 0:00:52.8]} 69... Kh8 {[%clk 0:00:02]} 70. Kh6 {[%clk 0:00:52.8]} 70...
Re8 {[%clk 0:00:01.4]} 71. g7# {[%clk 0:00:52.7]} 1-0

[Event "Late-Titled-Tuesday-Blitz-October-10-2023"]
[Site "Chess.com"]
[Date "2023.10.10"]
[Round "2"]
[White "micke12a"]
[Black "FrankDux44"]
[Result "0-1"]
[WhiteElo "2338"]
[BlackElo "2640"]
[TimeControl "180+1"]
[EndTime "14:18:09 PDT"]
[Termination "FrankDux44 won by resignation"]

1. e4 {[%clk 0:02:56.3]} 1... c5 {[%clk 0:02:59.9]} 2. Nf3 {[%clk 0:02:49.9]}
2... d6 {[%clk 0:02:59.6]} 3. d4 {[%clk 0:02:33]} 3... cxd4 {[%clk 0:03:00.5]}
4. Qxd4 {[%clk 0:02:33.2]} 4... Nc6 {[%clk 0:02:59.6]} 5. Qe3 {[%clk 0:02:33.3]}
5... g6 {[%clk 0:02:57.5]} 6. Be2 {[%clk 0:02:33.3]} 6... Bg7 {[%clk 0:02:57.6]}
7. O-O {[%clk 0:02:33.1]} 7... Nf6 {[%clk 0:02:58]} 8. h3 {[%clk 0:02:33.1]}
8... O-O {[%clk 0:02:58]} 9. Rd1 {[%clk 0:02:33.8]} 9... Qc7 {[%clk 0:02:36.6]}
10. Nc3 {[%clk 0:02:31.6]} 10... a6 {[%clk 0:02:32.9]} 11. Nd5 {[%clk
0:02:28.6]} 11... Nxd5 {[%clk 0:02:28.9]} 12. exd5 {[%clk 0:02:16.9]} 12... Nb4
{[%clk 0:02:27.3]} 13. Ne1 {[%clk 0:02:05.6]} 13... Nxc2 {[%clk 0:02:25.4]} 14.
Nxc2 {[%clk 0:02:05.4]} 14... Qxc2 {[%clk 0:02:26.1]} 15. Qxe7 {[%clk
0:01:53.8]} 15... Bf5 {[%clk 0:02:10.1]} 16. Bf3 {[%clk 0:01:51.5]} 16... Rfe8
{[%clk 0:02:00.4]} 17. Qxd6 {[%clk 0:01:42]} 17... Qxd1+ {[%clk 0:01:58.3]} 18.
Bxd1 {[%clk 0:01:40]} 18... Re1+ {[%clk 0:01:59]} 19. Kh2 {[%clk 0:01:39.7]}
19... Be5+ {[%clk 0:01:59.5]} 20. Qxe5 {[%clk 0:01:38.7]} 20... Rxe5 {[%clk
0:02:00.4]} 21. Bf3 {[%clk 0:01:36.3]} 21... Be4 {[%clk 0:01:56]} 22. Bf4 {[%clk
0:01:35.6]} 22... Rf5 {[%clk 0:01:46.2]} 23. Bxe4 {[%clk 0:01:28.4]} 23... Rxf4
{[%clk 0:01:46.4]} 24. Bf3 {[%clk 0:01:29.2]} 24... Rc8 {[%clk 0:01:38.7]} 25.
Re1 {[%clk 0:01:26.9]} 25... Kf8 {[%clk 0:01:28.2]} 26. d6 {[%clk 0:01:18.7]}
26... Rd8 {[%clk 0:01:17.2]} 27. Re7 {[%clk 0:01:12.9]} 27... Rxd6 {[%clk
0:01:16.8]} 28. Rxb7 {[%clk 0:01:12.9]} 28... a5 {[%clk 0:01:10.7]} 29. Ra7
{[%clk 0:01:08.3]} 29... Rb4 {[%clk 0:01:05.8]} 30. Rxa5 {[%clk 0:00:59.2]}
30... Rxb2 {[%clk 0:01:05.7]} 31. Kg3 {[%clk 0:00:57.4]} 31... h5 {[%clk
0:01:05.4]} 32. Ra8+ {[%clk 0:00:56.8]} 32... Kg7 {[%clk 0:01:05.2]} 33. a4
{[%clk 0:00:50.4]} 33... Rd4 {[%clk 0:00:57.6]} 34. h4 {[%clk 0:00:47.2]} 34...
Ra2 {[%clk 0:00:54.1]} 35. Bc6 {[%clk 0:00:41.5]} 35... Ra3+ {[%clk 0:00:51.6]}
36. f3 {[%clk 0:00:39.6]} 36... Rd2 {[%clk 0:00:47.9]} 37. Ra7 {[%clk
0:00:35.9]} 37... Raa2 {[%clk 0:00:46.4]} 38. a5 {[%clk 0:00:34]} 38... Rxg2+
{[%clk 0:00:46]} 39. Kf4 {[%clk 0:00:34.3]} 39... Rh2 {[%clk 0:00:45]} 40. Bd5
{[%clk 0:00:27.2]} 40... Ra4+ {[%clk 0:00:44.5]} 41. Kg3 {[%clk 0:00:26.6]}
41... Rd2 {[%clk 0:00:43.5]} 42. Bxf7 {[%clk 0:00:20.6]} 42... Kf6 {[%clk
0:00:43.6]} 43. a6 {[%clk 0:00:18.9]} 43... Rd6 {[%clk 0:00:37.8]} 44. Be8
{[%clk 0:00:19]} 44... Raxa6 {[%clk 0:00:36.2]} 45. Rf7+ {[%clk 0:00:18.6]}
45... Ke6 {[%clk 0:00:36.4]} 46. Rf4 {[%clk 0:00:18.8]} 46... Rd8 {[%clk
0:00:34.4]} 47. Bxg6 {[%clk 0:00:18.6]} 47... Rg8 {[%clk 0:00:34.4]} 48. Re4+
{[%clk 0:00:10]} 48... Kf6 {[%clk 0:00:34.6]} 49. Rb4 {[%clk 0:00:09.2]} 49...
Rxg6+ {[%clk 0:00:33.8]} 50. Kf4 {[%clk 0:00:10.1]} 50... Re6 {[%clk 0:00:30.3]}
51. Rb8 {[%clk 0:00:09.9]} 51... Kf7 {[%clk 0:00:29.5]} 52. Rh8 {[%clk
0:00:09.9]} 52... Ref6+ {[%clk 0:00:29]} 53. Ke4 {[%clk 0:00:10.4]} 53... Rh6
{[%clk 0:00:28.2]} 54. Ra8 {[%clk 0:00:10]} 54... Kg6 {[%clk 0:00:28]} 55. Rg8+
{[%clk 0:00:09.4]} 55... Kh7 {[%clk 0:00:27.3]} 56. Ra8 {[%clk 0:00:09.1]} 56...
Rf7 {[%clk 0:00:26.8]} 57. f4 {[%clk 0:00:08.9]} 57... Re6+ {[%clk 0:00:26.7]}
58. Kf3 {[%clk 0:00:08.3]} 58... Rb6 {[%clk 0:00:26.6]} 59. Ra5 {[%clk
0:00:06.8]} 59... Rb3+ {[%clk 0:00:26.8]} 60. Ke4 {[%clk 0:00:07.4]} 60... Rb4+
{[%clk 0:00:27.1]} 61. Ke3 {[%clk 0:00:08.2]} 61... Kg6 {[%clk 0:00:25.3]} 62.
Rg5+ {[%clk 0:00:08.4]} 62... Kh6 {[%clk 0:00:25.3]} 63. f5 {[%clk 0:00:09.3]}
63... Rxh4 {[%clk 0:00:24.5]} 64. Rg6+ {[%clk 0:00:10]} 64... Kh7 {[%clk
0:00:24.5]} 65. Rg1 {[%clk 0:00:09.6]} 65... Rxf5 {[%clk 0:00:24.6]} 0-1

[Event "Late-Titled-Tuesday-Blitz-October-10-2023"]
[Site "Chess.com"]
[Date "2023.10.10"]
[Round "2"]
[White "Inepton_Fermion"]
[Black "Mariia89"]
[Result "0-1"]
[WhiteElo "2405"]
[BlackElo "2064"]
[TimeControl "180+1"]
[EndTime "14:18:11 PDT"]
[Termination "Mariia89 won by checkmate"]

1. Nf3 {[%clk 0:02:09.6]} 1... c5 {[%clk 0:02:58.7]} 2. b3 {[%clk 0:02:10.5]}
2... Nc6 {[%clk 0:02:58.5]} 3. Bb2 {[%clk 0:02:08.5]} 3... Nf6 {[%clk
0:02:59.2]} 4. c4 {[%clk 0:02:06.7]} 4... d5 {[%clk 0:02:54.2]} 5. cxd5 {[%clk
0:02:05.5]} 5... Nxd5 {[%clk 0:02:54.2]} 6. g3 {[%clk 0:02:01.2]} 6... Bg4
{[%clk 0:02:46.1]} 7. Bg2 {[%clk 0:02:01]} 7... e6 {[%clk 0:02:46.7]} 8. O-O
{[%clk 0:02:00.7]} 8... Rc8 {[%clk 0:02:37.2]} 9. d3 {[%clk 0:01:54.6]} 9...
Bxf3 {[%clk 0:02:29.7]} 10. Bxf3 {[%clk 0:01:54.1]} 10... Nd4 {[%clk 0:02:30.2]}
11. Bg2 {[%clk 0:01:53.7]} 11... e5 {[%clk 0:02:22.5]} 12. Nd2 {[%clk
0:01:52.8]} 12... Be7 {[%clk 0:02:22]} 13. Rc1 {[%clk 0:01:52.1]} 13... O-O
{[%clk 0:02:21.9]} 14. Nc4 {[%clk 0:01:46.4]} 14... Bf6 {[%clk 0:02:09.6]} 15.
Qd2 {[%clk 0:01:30.4]} 15... b5 {[%clk 0:02:07.8]} 16. Ne3 {[%clk 0:01:25.6]}
16... Nb4 {[%clk 0:01:55.9]} 17. Ng4 {[%clk 0:01:15.1]} 17... Re8 {[%clk
0:01:40.1]} 18. Rfd1 {[%clk 0:01:02.6]} 18... h5 {[%clk 0:01:39.4]} 19. Nxf6+
{[%clk 0:00:44.3]} 19... Qxf6 {[%clk 0:01:38.4]} 20. Bc3 {[%clk 0:00:42.2]}
20... Na6 {[%clk 0:01:18.2]} 21. h4 {[%clk 0:00:32.1]} 21... Nb8 {[%clk
0:01:00.9]} 22. Bb2 {[%clk 0:00:30.7]} 22... Nd7 {[%clk 0:01:00.1]} 23. Bb7
{[%clk 0:00:23.5]} 23... Rc7 {[%clk 0:01:00.1]} 24. Be4 {[%clk 0:00:22.4]} 24...
Nb6 {[%clk 0:00:58.6]} 25. Qe3 {[%clk 0:00:20.3]} 25... Rec8 {[%clk 0:00:54.6]}
26. Kg2 {[%clk 0:00:19]} 26... a5 {[%clk 0:00:54]} 27. Qd2 {[%clk 0:00:19.1]}
27... a4 {[%clk 0:00:54.1]} 28. e3 {[%clk 0:00:18.2]} 28... Ne6 {[%clk
0:00:49.5]} 29. Qa5 {[%clk 0:00:18.7]} 29... Nd8 {[%clk 0:00:38]} 30. f4 {[%clk
0:00:14.6]} 30... Nd7 {[%clk 0:00:33.6]} 31. bxa4 {[%clk 0:00:14.6]} 31... bxa4
{[%clk 0:00:33.3]} 32. Qxa4 {[%clk 0:00:14.8]} 32... Qe6 {[%clk 0:00:30.3]} 33.
Qc4 {[%clk 0:00:11.3]} 33... Qb6 {[%clk 0:00:28.1]} 34. Bxe5 {[%clk 0:00:09]}
34... Nxe5 {[%clk 0:00:27.6]} 35. fxe5 {[%clk 0:00:09.9]} 35... Ne6 {[%clk
0:00:28.1]} 36. Bf5 {[%clk 0:00:08]} 36... Qb2+ {[%clk 0:00:26.3]} 37. Rc2
{[%clk 0:00:08]} 37... Qxe5 {[%clk 0:00:27.1]} 38. Bxe6 {[%clk 0:00:05.6]} 38...
fxe6 {[%clk 0:00:27.3]} 39. Qf4 {[%clk 0:00:03.8]} 39... Qd5+ {[%clk 0:00:23.1]}
40. Qf3 {[%clk 0:00:04.3]} 40... Qd6 {[%clk 0:00:23]} 41. Rdc1 {[%clk
0:00:04.5]} 41... Rf7 {[%clk 0:00:22.7]} 42. Qxh5 {[%clk 0:00:04.2]} 42... Qxd3
{[%clk 0:00:21.9]} 43. Qe2 {[%clk 0:00:04.5]} 43... Qd5+ {[%clk 0:00:22]} 44.
Kh2 {[%clk 0:00:04.7]} 44... c4 {[%clk 0:00:22.4]} 45. Rxc4 {[%clk 0:00:03.6]}
45... Ra8 {[%clk 0:00:21.7]} 46. R4c2 {[%clk 0:00:02.8]} 46... Raf8 {[%clk
0:00:21.4]} 47. Qg2 {[%clk 0:00:02.4]} 47... Qd3 {[%clk 0:00:21.2]} 48. e4
{[%clk 0:00:02]} 48... Qe3 {[%clk 0:00:21.1]} 49. Kh1 {[%clk 0:00:01]} 49... Rf2
{[%clk 0:00:21.2]} 50. Qg1 {[%clk 0:00:01.4]} 50... Qf3+ {[%clk 0:00:19.9]} 51.
Qg2 {[%clk 0:00:01.1]} 51... Qxg2# {[%clk 0:00:20.5]} 0-1

[Event "Late-Titled-Tuesday-Blitz-October-10-2023"]
[Site "Chess.com"]
[Date "2023.10.10"]
[Round "2"]
[White "IngOscarArdila"]
[Black "WPWPWP-2015"]
[Result "0-1"]
[WhiteElo "2317"]
[BlackElo "2523"]
[TimeControl "180+1"]
[EndTime "14:18:12 PDT"]
[Termination "WPWPWP-2015 won on time"]

1. d4 {[%clk 0:02:59.1]} 1... Nf6 {[%clk 0:02:58.9]} 2. c4 {[%clk 0:02:59.2]}
2... e6 {[%clk 0:02:58.8]} 3. Nc3 {[%clk 0:02:59.2]} 3... Bb4 {[%clk 0:02:58.6]}
4. Bg5 {[%clk 0:02:59.2]} 4... h6 {[%clk 0:02:57.1]} 5. Bh4 {[%clk 0:02:59.1]}
5... g5 {[%clk 0:02:57.2]} 6. Bg3 {[%clk 0:02:59.3]} 6... Ne4 {[%clk 0:02:57.7]}
7. Qc2 {[%clk 0:02:55.7]} 7... Bxc3+ {[%clk 0:02:57]} 8. bxc3 {[%clk 0:02:53.9]}
8... d5 {[%clk 0:02:56]} 9. e3 {[%clk 0:02:44.4]} 9... Nd7 {[%clk 0:02:52]} 10.
Bd3 {[%clk 0:02:43.4]} 10... f5 {[%clk 0:02:50]} 11. Ne2 {[%clk 0:02:34.4]}
11... O-O {[%clk 0:02:46.3]} 12. f3 {[%clk 0:02:29.8]} 12... Nef6 {[%clk
0:02:39.2]} 13. cxd5 {[%clk 0:02:26.8]} 13... Nxd5 {[%clk 0:02:38.5]} 14. Bf2
{[%clk 0:02:17.2]} 14... c5 {[%clk 0:02:34.7]} 15. e4 {[%clk 0:02:17.1]} 15...
Ne7 {[%clk 0:02:27.4]} 16. h4 {[%clk 0:02:14.1]} 16... g4 {[%clk 0:02:21.3]} 17.
Qd2 {[%clk 0:02:10.9]} 17... Kg7 {[%clk 0:02:14.4]} 18. Be3 {[%clk 0:02:10.6]}
18... Rf6 {[%clk 0:02:05.1]} 19. O-O {[%clk 0:02:06.6]} 19... Ng8 {[%clk
0:01:46]} 20. fxg4 {[%clk 0:02:05]} 20... fxg4 {[%clk 0:01:44.8]} 21. g3 {[%clk
0:01:55.4]} 21... Rf3 {[%clk 0:01:34.9]} 22. Rxf3 {[%clk 0:01:48.1]} 22... gxf3
{[%clk 0:01:35.8]} 23. Nf4 {[%clk 0:01:48.1]} 23... Ndf6 {[%clk 0:01:36.2]} 24.
Rf1 {[%clk 0:01:40.1]} 24... e5 {[%clk 0:01:33.7]} 25. dxe5 {[%clk 0:01:26.8]}
25... Ng4 {[%clk 0:01:33.2]} 26. Rxf3 {[%clk 0:01:17.5]} 26... Nxe5 {[%clk
0:01:31.9]} 27. Qe2 {[%clk 0:00:56.8]} 27... Bg4 {[%clk 0:01:29.1]} 28. Ne6+
{[%clk 0:00:52.7]} 28... Bxe6 {[%clk 0:01:26.2]} 29. Bf4 {[%clk 0:00:46.6]}
29... Nxf3+ {[%clk 0:01:15.3]} 30. Qxf3 {[%clk 0:00:44.4]} 30... Qf6 {[%clk
0:01:13.8]} 31. e5 {[%clk 0:00:36.1]} 31... Qf7 {[%clk 0:01:13.8]} 32. Qe4
{[%clk 0:00:29.1]} 32... Kh8 {[%clk 0:01:04.5]} 33. Be2 {[%clk 0:00:18.2]} 33...
Rd8 {[%clk 0:00:45.3]} 34. a4 {[%clk 0:00:16.9]} 34... Bf5 {[%clk 0:00:36.5]}
35. Qe3 {[%clk 0:00:15.6]} 35... Qg6 {[%clk 0:00:29.6]} 36. Qxc5 {[%clk
0:00:12.6]} 36... Rd7 {[%clk 0:00:28.1]} 37. Qe3 {[%clk 0:00:09.1]} 37... Qe6
{[%clk 0:00:26.9]} 38. c4 {[%clk 0:00:06.2]} 38... b6 {[%clk 0:00:25.9]} 39. h5
{[%clk 0:00:03.2]} 39... Qe7 {[%clk 0:00:23.3]} 40. a5 {[%clk 0:00:03.6]} 40...
Qc5 {[%clk 0:00:22.7]} 41. axb6 {[%clk 0:00:01.6]} 41... axb6 {[%clk 0:00:22.7]}
42. Qxc5 {[%clk 0:00:01.4]} 42... bxc5 {[%clk 0:00:23]} 43. Be3 {[%clk
0:00:02.3]} 43... Rc7 {[%clk 0:00:21.8]} 44. Kf2 {[%clk 0:00:02.7]} 44... Be6
{[%clk 0:00:21.4]} 45. Kf3 {[%clk 0:00:02.5]} 45... Kg7 {[%clk 0:00:21.7]} 46.
Ke4 {[%clk 0:00:02.9]} 46... Ne7 {[%clk 0:00:22]} 47. Bf4 {[%clk 0:00:02.8]}
47... Bf5+ {[%clk 0:00:19.3]} 48. Ke3 {[%clk 0:00:03]} 48... Be6 {[%clk
0:00:19.7]} 49. g4 {[%clk 0:00:03.4]} 49... Rd7 {[%clk 0:00:19.2]} 50. Bg3
{[%clk 0:00:02.8]} 50... Rd4 {[%clk 0:00:17.3]} 51. Bh4 {[%clk 0:00:02.9]} 51...
Ng8 {[%clk 0:00:17]} 52. Bf6+ {[%clk 0:00:03.1]} 52... Nxf6 {[%clk 0:00:16.6]}
53. exf6+ {[%clk 0:00:03.2]} 53... Kxf6 {[%clk 0:00:17.1]} 54. Bf3 {[%clk
0:00:04.1]} 54... Bxg4 {[%clk 0:00:16.9]} 55. Bg2 {[%clk 0:00:03.8]} 55... Bxh5
{[%clk 0:00:17.1]} 56. Bd5 {[%clk 0:00:03.5]} 56... Bf7 {[%clk 0:00:17]} 57. Kf2
{[%clk 0:00:03.5]} 57... Bxd5 {[%clk 0:00:17]} 58. cxd5 {[%clk 0:00:03.9]} 58...
Rxd5 {[%clk 0:00:17.9]} 59. Ke3 {[%clk 0:00:04.5]} 59... Kf5 {[%clk 0:00:18.4]}
60. Kf3 {[%clk 0:00:04.7]} 60... Re5 {[%clk 0:00:18.9]} 0-1